bitfinex/quotes_SOLUSD_20240606
["timestamp","ask_amount","ask_price","bid_price","bid_amount"]
[1717697697383,2.1554,171.66,171.58,26.4095]
[1717697697585,6.58,171.62,171.58,26.4095]
[1717697697784,2.1554,171.66,171.58,26.4095]
[1717697697987,6.58,171.62,171.58,26.4095]
[1717697700392,2.3253,171.67,171.58,26.4095]
[1717697700570,6.58,171.62,171.58,26.4095]
[1717697701282,6.58,171.6,171.58,20.0]
[1717697701586,6.58,171.6,171.55,146.4095]
[1717697702189,6.58,171.6,171.56,6.4095]
[1717697702575,6.58,171.6,171.57,20.0]
[1717697703477,2.3253,171.67,171.57,20.0]
[1717697703669,6.58,171.61,171.57,20.0]
[1717697704276,2.3254,171.66,171.57,20.0]
[1717697704592,2.1552,171.68,171.57,140.0]
[1717697704890,6.58,171.62,171.58,6.4095]
[1717697705868,2.1552,171.68,171.58,6.4095]
[1717697706200,6.58,171.63,171.58,6.4095]
[1717697706494,2.1552,171.68,171.58,12.9895]
[1717697706790,6.58,171.67,171.6,6.58]
[1717697706995,6.58,171.67,171.61,20.0]
[1717697707370,6.58,171.66,171.61,20.0]
[1717697707590,6.58,171.66,171.6,26.58]
[1717697708895,6.58,171.65,171.6,20.0]
[1717697709291,6.58,171.63,171.6,20.0]
[1717697709591,6.58,171.63,171.58,6.4095]
[1717697709592,32.3947,171.72,171.58,6.4095]
[1717697709793,6.58,171.59,171.54,6.4095]
[1717697710000,6.58,171.63,171.54,6.4095]
[1717697710225,6.58,171.58,171.54,6.4095]
[1717697711394,26.32,171.63,171.54,6.4095]
[1717697711570,26.32,171.63,171.55,20.0]
[1717697712402,6.58,171.59,171.55,20.0]
[1717697716294,6.58,171.57,171.55,20.0]
[1717697716477,6.58,171.57,171.52,26.4095]
[1717697721247,6.58,171.57,171.52,32.2365]
[1717697722987,6.58,171.57,171.52,25.827]
[1717697723794,41.9239,171.63,171.52,25.827]
[1717697724106,6.58,171.57,171.52,25.827]
[1717697725112,6.58,171.56,171.52,25.827]
[1717697727216,6.58,171.56,171.52,20.0]
[1717697727517,6.58,171.56,171.53,5.827]
[1717697727722,6.58,171.56,171.54,20.0]
[1717697728301,6.58,171.56,171.51,20.0]
[1717697728502,6.58,171.56,171.52,5.827]
[1717697728816,6.58,171.56,171.53,20.0]
[1717697729202,6.58,171.56,171.52,25.827]
[1717697732320,6.58,171.55,171.52,25.827]
[1717697733424,6.58,171.54,171.52,25.827]
[1717697735626,6.58,171.54,171.52,20.0]
[1717697735823,6.58,171.54,171.51,5.827]
[1717697736018,6.58,171.54,171.52,25.827]
[1717697736206,6.58,171.54,171.52,5.827]
[1717697736516,6.58,171.54,171.5,23.6482454]
[1717697738031,6.58,171.54,171.51,5.827]
[1717697738233,6.58,171.54,171.52,20.0]
[1717697738616,6.58,171.54,171.51,5.827]
[1717697738810,6.58,171.53,171.51,5.827]
[1717697741036,6.0747,171.57,171.51,5.827]
[1717697741243,6.58,171.53,171.51,5.827]
[1717697742315,6.58,171.53,171.5,3.6482454]
[1717697742741,6.58,171.53,171.5,9.4752454]
[1717697743933,6.58,171.53,171.5,3.6482454]
[1717697744437,6.58,171.53,171.5,3.6482454]
[1717697746338,6.58,171.51,171.5,3.6482454]
[1717697747437,21.6786,171.54,171.5,3.6482454]
[1717697747645,6.58,171.51,171.5,3.6482454]
[1717697754244,41.9239,171.54,171.5,3.6482454]
[1717697754424,6.4147,171.53,171.5,3.6482454]
[1717697755131,6.58,171.51,171.5,3.6482454]
[1717697756925,6.58,171.51,171.5,5.8056454]
[1717697758222,6.4147,171.53,171.5,5.8056454]
[1717697758419,6.4147,171.53,171.51,2.1572]
[1717697758626,6.5494,171.57,171.52,2.1571]
[1717697758924,6.8894,171.56,171.52,2.1571]
[1717697759126,6.58,171.53,171.52,2.1571]
[1717697759329,6.58,171.53,171.51,2.1572]
[1717697759538,6.58,171.52,171.51,2.1572]
[1717697760450,6.58,171.52,171.5,3.6482454]
[1717697760839,6.58,171.51,171.5,3.6482454]
[1717697762033,32.8694,171.54,171.5,3.6482454]
[1717697762349,0.34,171.53,171.5,5.8055454]
[1717697762649,6.5494,171.54,171.51,2.1572]
[1717697762955,6.58,171.52,171.5,5.8056454]
[1717697763130,6.58,171.51,171.5,5.8056454]
[1717697763852,0.17,171.55,171.51,2.1572]
[1717697764030,6.58,171.53,171.5,3.6482454]
[1717697764231,0.34,171.56,171.5,3.6482454]
[1717697764540,6.58,171.53,171.5,3.6482454]
[1717697765557,6.58,171.52,171.5,3.6482454]
[1717697766327,6.58,171.51,171.5,3.6482454]
[1717697767663,2.4967,171.56,171.5,3.6482454]
[1717697767955,6.5494,171.58,171.5,3.6482454]
[1717697768164,6.58,171.55,171.5,3.6482454]
[1717697768327,6.5494,171.58,171.5,3.6482454]
[1717697768751,2.1564,171.58,171.5,9.8271454]
[1717697768933,6.58,171.55,171.5,9.8271454]
[1717697769137,2.1564,171.58,171.5,9.8271454]
[1717697769461,6.58,171.54,171.5,9.8271454]
[1717697769755,6.58,171.53,171.5,3.6482454]
[1717697773662,2.1564,171.58,171.5,3.6482454]
[1717697773862,0.34,171.57,171.5,3.6482454]
[1717697774161,6.58,171.54,171.5,3.6482454]
[1717697775867,10.7809,171.6,171.5,3.6482454]
[1717697775868,15.6039,171.61,171.5,3.6482454]
[1717697776078,6.58,171.56,171.5,10.2282454]
[1717697776239,2.1562,171.6,171.51,20.0]
[1717697776438,6.58,171.54,171.51,20.0]
[1717697776854,6.58,171.54,171.5,3.6482454]
[1717697777478,6.58,171.53,171.5,3.6482454]
[1717697779770,4.3123,171.6,171.5,3.6482454]
[1717697779771,6.58,171.52,171.5,3.6482454]
[1717697780370,6.58,171.51,171.5,3.6482454]
[1717697781163,6.5494,171.53,171.5,3.6482454]
[1717697781451,6.7194,171.53,171.5,3.6482454]
[1717697781659,26.49,171.54,171.5,3.6482454]
[1717697781863,6.58,171.51,171.5,3.6482454]
[1717697782573,6.58,171.52,171.5,5.8055454]
[1717697785749,6.58,171.52,171.5,3.6482454]
[1717697789778,2.1567,171.56,171.5,5.8055454]
[1717697789975,6.58,171.52,171.5,5.8055454]
[1717697790555,6.58,171.53,171.5,5.8055454]
[1717697791253,6.58,171.52,171.5,5.8055454]
[1717697791755,2.1568,171.55,171.5,3.6482454]
[1717697792082,6.58,171.53,171.5,3.6482454]
[1717697792253,2.1564,171.58,171.5,3.6482454]
[1717697792580,6.58,171.55,171.5,3.6482454]
[1717697792788,4.3124,171.6,171.5,3.6482454]
[1717697792982,6.58,171.55,171.5,3.6482454]
[1717697793153,2.1564,171.58,171.51,6.2183]
[1717697793415,6.58,171.56,171.51,6.2183]
[1717697793565,6.58,171.56,171.52,2.33140574]
[1717697793791,6.58,171.56,171.5,136.4465454]
[1717697793957,2.1563,171.59,171.5,136.4465454]
[1717697794151,6.58,171.56,171.5,136.4465454]
[1717697794750,2.1563,171.59,171.5,136.4465454]
[1717697794950,6.58,171.56,171.5,136.4465454]
[1717697795386,2.1562,171.6,171.5,129.8665454]
[1717697795566,2.1562,171.6,171.51,6.58]
[1717697795956,2.156,171.61,171.52,126.58]
[1717697796320,6.58,171.58,171.52,126.58]
[1717697797067,6.58,171.58,171.52,120.0]
[1717697797376,6.58,171.58,171.52,126.58]
[1717697802491,6.58,171.58,171.52,120.0]
[1717697802686,6.58,171.57,171.5,129.8665454]
[1717697802883,6.58,171.57,171.51,26.58]
[1717697803375,6.58,171.57,171.53,6.4612]
[1717697803567,6.58,171.58,171.53,6.4612]
[1717697807687,2.1562,171.6,171.53,6.4612]
[1717697807978,6.58,171.58,171.53,6.4612]
[1717697810110,6.58,171.58,171.52,126.58]
[1717697810476,6.58,171.57,171.52,120.0]
[1717697811315,37.099,171.63,171.52,132.8614]
[1717697811316,6.58,171.58,171.52,132.8614]
[1717697819306,6.58,171.58,171.52,126.2814]
[1717697821609,6.58,171.58,171.52,132.8614]
[1717697821904,10.7774,171.66,171.55,6.58]
[1717697822110,6.58,171.61,171.55,6.58]
[1717697822612,6.58,171.61,171.54,120.0]
[1717697822788,6.58,171.61,171.55,26.58]
[1717697823101,6.58,171.6,171.55,20.0]
[1717697823999,2.1558,171.63,171.55,20.0]
[1717697824198,6.58,171.6,171.55,20.0]
[1717697824799,2.1558,171.63,171.55,20.0]
[1717697824991,6.58,171.6,171.55,26.2593]
[1717697825387,6.58,171.6,171.55,20.0]
[1717697825612,6.58,171.61,171.55,26.58]
[1717697826109,4.3108,171.66,171.55,26.58]
[1717697826340,6.0327,171.69,171.56,126.58]
[1717697826488,2.1554,171.67,171.57,26.58]
[1717697826996,6.58,171.63,171.57,26.58]
[1717697827181,2.1554,171.67,171.57,20.0]
[1717697827386,6.58,171.65,171.58,6.58]
[1717697828017,6.58,171.64,171.58,6.58]
[1717697829391,2.1554,171.66,171.58,126.58]
[1717697829592,6.58,171.64,171.58,126.58]
[1717697831810,6.58,171.65,171.58,126.58]
[1717697832120,6.58,171.65,171.59,6.58]
[1717697832287,2.1553,171.67,171.58,126.58]
[1717697832491,2.1553,171.67,171.59,6.58]
[1717697832688,6.58,171.65,171.59,6.58]
[1717697832902,2.155,171.69,171.61,120.0]
[1717697833124,2.155,171.69,171.62,6.58]
[1717697833324,6.58,171.68,171.62,6.58]
[1717697834417,6.58,171.66,171.61,132.6935]
[1717697834720,6.58,171.66,171.61,126.1135]
[1717697836027,6.58,171.65,171.61,6.1135]
[1717697836214,6.58,171.64,171.61,6.1135]
[1717697837311,2.1551,171.69,171.61,6.1135]
[1717697837513,6.58,171.65,171.61,6.1135]
[1717697838018,2.1549,171.7,171.61,6.1135]
[1717697838219,6.58,171.66,171.61,6.1135]
[1717697839114,6.58,171.66,171.61,126.1135]
[1717697840719,6.58,171.66,171.61,6.1135]
[1717697841017,37.0935,171.72,171.59,6.0906]
[1717697841018,6.58,171.63,171.59,6.0906]
[1717697841207,6.58,171.62,171.59,6.0906]
[1717697841716,6.58,171.6,171.54,22.114]
[1717697841895,6.58,171.58,171.54,6.1868]
[1717697843218,6.58,171.58,171.55,20.0]
[1717697844411,2.1557,171.64,171.55,140.0]
[1717697844594,6.58,171.6,171.55,146.4256]
[1717697845017,6.2711,171.69,171.57,120.0]
[1717697845217,2.1553,171.67,171.58,20.0]
[1717697845420,6.58,171.63,171.58,20.0]
[1717697845623,2.1552,171.68,171.58,26.4256]
[1717697845821,6.58,171.63,171.59,6.4448]
[1717697846023,6.58,171.63,171.59,126.4448]
[1717697846408,6.58,171.64,171.59,126.4448]
[1717697850741,6.58,171.64,171.58,26.58]
[1717697850912,6.58,171.62,171.58,20.0]
[1717697851119,6.58,171.62,171.57,26.5201]
[1717697852336,6.58,171.63,171.57,146.5201]
[1717697853031,6.58,171.63,171.57,153.1001]
[1717697853339,6.58,171.63,171.57,33.1001]
[1717697853539,6.58,171.62,171.57,26.5201]
[1717697856640,2.1555,171.65,171.57,20.0]
[1717697856825,6.58,171.59,171.54,20.0]
[1717697857027,6.58,171.58,171.54,20.0]
[1717697857230,6.58,171.57,171.54,20.0]
[1717697857930,6.58,171.57,171.53,120.0]
[1717697857931,6.58,171.58,171.53,120.0]
[1717697859225,6.58,171.58,171.54,20.0]
[1717697860147,6.58,171.57,171.54,20.0]
[1717697860351,6.58,171.58,171.54,20.0]
[1717697862158,6.58,171.58,171.53,120.0]
[1717697866657,6.58,171.58,171.52,126.58]
[1717697866957,6.58,171.58,171.53,20.0]
[1717697868250,6.58,171.57,171.53,20.0]
[1717697873867,6.58,171.56,171.53,20.0]
[1717697874233,6.58,171.56,171.51,20.0]
[1717697874455,6.58,171.55,171.51,20.0]
[1717697879157,6.58,171.55,171.5,23.6482454]
[1717697879366,6.58,171.55,171.5,3.6482454]
[1717697880155,2.1561,171.6,171.5,3.6482454]
[1717697880345,6.58,171.54,171.5,3.6482454]
[1717697881167,2.3261,171.61,171.5,123.6482454]
[1717697881464,0.17,171.61,171.51,20.0]
[1717697881849,6.58,171.55,171.51,20.0]
[1717697884236,2.326,171.62,171.51,20.0]
[1717697884437,6.58,171.57,171.51,26.58]
[1717697884654,6.58,171.57,171.51,20.0]
[1717697884859,6.58,171.56,171.51,20.0]
[1717697885562,6.58,171.55,171.51,20.0]
[1717697885934,6.58,171.54,171.51,20.0]
[1717697886158,6.58,171.54,171.5,3.6482454]
[1717697887959,6.4492,171.63,171.53,126.58]
[1717697888146,6.4492,171.63,171.55,6.58]
[1717697888465,13.0292,171.63,171.57,6.58]
[1717697888647,6.58,171.63,171.57,6.58]
[1717697888959,6.58,171.63,171.58,20.0]
[1717697890444,8.5504,171.67,171.58,20.0]
[1717697890650,6.58,171.63,171.58,20.0]
[1717697893768,6.58,171.63,171.57,26.58]
[1717697894774,6.58,171.63,171.57,20.0]
[1717697894980,6.58,171.63,171.57,26.58]
[1717697895152,6.58,171.62,171.57,20.0]
[1717697895353,6.3952,171.67,171.57,20.0]
[1717697895354,6.58,171.64,171.58,6.58]
[1717697896276,16.3783,171.73,171.61,6.58]
[1717697896580,16.3783,171.73,171.6,120.0]
[1717697896581,6.58,171.69,171.63,6.58]
[1717697896778,2.1548,171.71,171.62,6.58]
[1717697896984,18.5329,171.73,171.64,6.58]
[1717697897683,18.5329,171.73,171.65,6.58]
[1717697898182,6.58,171.71,171.64,6.58]
[1717697898375,6.58,171.7,171.64,6.58]
[1717697900193,6.58,171.69,171.63,6.58]
[1717697900362,6.58,171.69,171.64,20.0]
[1717697900563,6.58,171.68,171.64,20.0]
[1717697901068,6.58,171.68,171.63,20.0]
[1717697902388,6.58,171.67,171.63,20.0]
[1717697902578,6.58,171.67,171.62,20.0]
[1717697902779,6.58,171.67,171.61,26.58]
[1717697904487,6.58,171.67,171.61,20.0]
[1717697904683,6.58,171.67,171.61,26.58]
[1717697905787,6.58,171.68,171.62,6.58]
[1717697905964,6.58,171.68,171.63,20.0]
[1717697908286,12.6344,171.68,171.63,20.0]
[1717697909368,6.58,171.67,171.63,20.0]
[1717697909569,6.58,171.67,171.62,20.0]
[1717697909968,6.0544,171.68,171.62,26.58]
[1717697910172,12.6344,171.68,171.62,26.58]
[1717697911287,6.0544,171.68,171.62,20.0]
[1717697911501,6.58,171.67,171.62,20.0]
[1717697911678,6.58,171.65,171.58,6.124]
[1717697912002,6.58,171.64,171.58,6.58]
[1717697913174,6.58,171.64,171.59,20.0]
[1717697914791,6.58,171.64,171.58,20.0]
[1717697915389,6.58,171.63,171.58,20.0]
[1717697917195,15.9268,171.67,171.59,6.58]
[1717697917496,6.58,171.64,171.6,20.0]
[1717697917801,6.58,171.64,171.58,26.58]
[1717697918005,6.58,171.65,171.59,6.58]
[1717697918176,6.58,171.65,171.6,20.0]
[1717697918493,12.6803,171.65,171.6,20.0]
[1717697919778,6.1003,171.65,171.6,20.0]
[1717697919978,6.58,171.66,171.6,20.0]
[1717697920796,6.58,171.66,171.6,26.58]
[1717697921299,15.9268,171.67,171.6,26.58]
[1717697921475,6.0063,171.69,171.6,20.0]
[1717697921674,12.5863,171.69,171.63,6.58]
[1717697922395,12.5863,171.69,171.62,6.58]
[1717697922584,6.0063,171.69,171.6,20.0]
[1717697922784,6.58,171.66,171.6,26.58]
[1717697922987,6.58,171.68,171.61,6.58]
[1717697924797,6.58,171.67,171.61,6.58]
[1717697926878,6.58,171.66,171.6,26.58]
[1717697929179,8.1613,171.69,171.6,26.58]
[1717697929399,6.58,171.66,171.6,26.58]
[1717697931201,6.58,171.65,171.6,20.0]
[1717697931498,6.58,171.65,171.58,26.58]
[1717697931706,6.58,171.64,171.58,26.58]
[1717697932283,6.58,171.65,171.58,26.58]
[1717697933512,6.58,171.65,171.59,6.58]
[1717697933716,6.58,171.65,171.6,20.0]
[1717697935710,6.5921,171.68,171.6,20.0]
[1717697935920,6.58,171.63,171.57,6.58]
[1717697936087,6.58,171.63,171.58,20.0]
[1717697936415,6.58,171.63,171.56,20.0]
[1717697936612,6.58,171.63,171.57,6.58]
[1717697936908,6.58,171.63,171.58,20.0]
[1717697937700,6.58,171.63,171.55,120.0]
[1717697937898,6.58,171.62,171.56,6.58]
[1717697939006,6.58,171.62,171.57,20.0]
[1717697939721,6.58,171.63,171.57,26.58]
[1717697940215,0.34,171.67,171.57,26.58]
[1717697940413,6.58,171.65,171.57,20.0]
[1717697940626,6.58,171.65,171.59,6.58]
[1717697941295,0.34,171.67,171.59,6.58]
[1717697941504,6.58,171.65,171.59,6.58]
[1717697942708,6.58,171.66,171.6,6.58]
[1717697943221,0.34,171.67,171.57,20.0]
[1717697943222,6.58,171.65,171.59,6.58]
[1717697943717,6.58,171.65,171.58,6.58]
[1717697943896,6.58,171.65,171.59,20.0]
[1717697946020,6.5921,171.68,171.6,6.58]
[1717697946331,6.58,171.67,171.59,20.0]
[1717697946520,6.58,171.67,171.61,6.58]
[1717697949207,6.58,171.67,171.6,6.58]
[1717697950312,6.58,171.66,171.6,6.58]
[1717697950726,6.5921,171.68,171.6,6.58]
[1717697951230,6.58,171.66,171.6,6.58]
[1717697952125,6.5921,171.68,171.6,6.58]
[1717697952517,6.5921,171.68,171.61,6.58]
[1717697952838,16.3855,171.71,171.62,6.58]
[1717697953017,6.58,171.68,171.62,6.58]
[1717697954127,6.58,171.69,171.63,6.58]
[1717697954725,16.3855,171.71,171.64,20.0]
[1717697954935,6.58,171.7,171.64,26.58]
[1717697955813,6.0353,171.72,171.64,20.0]
[1717697956008,6.58,171.71,171.65,6.58]
[1717697956214,6.58,171.71,171.64,26.58]
[1717697957015,6.0353,171.72,171.65,6.58]
[1717697957221,2.1544,171.74,171.65,126.58]
[1717697957422,6.58,171.71,171.65,126.58]
[1717697958937,6.58,171.7,171.64,26.58]
[1717697960048,6.58,171.7,171.64,26.58]
[1717697961340,6.58,171.69,171.64,20.0]
[1717697961850,6.58,171.68,171.64,20.0]
[1717697963405,6.58,171.68,171.63,20.0]
[1717697964218,6.58,171.66,171.63,20.0]
[1717697964417,6.58,171.66,171.61,20.0]
[1717697964619,6.58,171.68,171.61,146.58]
[1717697964827,6.58,171.68,171.62,6.58]
[1717697965018,6.58,171.68,171.63,20.0]
[1717697965734,0.34,171.73,171.64,6.58]
[1717697965935,6.58,171.7,171.64,6.58]
[1717697966135,6.58,171.71,171.65,6.58]
[1717697966337,6.58,171.71,171.65,26.58]
[1717697966536,6.58,171.71,171.65,6.58]
[1717697967256,6.58,171.71,171.63,140.0]
[1717697967417,6.58,171.7,171.64,6.58]
[1717697967718,6.58,171.7,171.65,140.0]
[1717697967921,6.58,171.71,171.65,146.58]
[1717697970760,6.58,171.7,171.65,140.0]
[1717697972350,6.58,171.7,171.65,20.0]
[1717697972645,6.58,171.69,171.65,20.0]
[1717697972844,6.58,171.69,171.64,20.0]
[1717697973142,6.58,171.68,171.64,20.0]
[1717697973349,6.58,171.67,171.63,20.0]
[1717697973636,6.58,171.67,171.62,20.0]
[1717697973838,2.1548,171.71,171.62,20.0]
[1717697974039,2.1548,171.71,171.6,126.58]
[1717697974040,6.58,171.66,171.61,20.0]
[1717697975452,6.58,171.67,171.61,26.58]
[1717697975823,6.58,171.66,171.61,26.58]
[1717697976530,6.58,171.66,171.61,20.0]
[1717697977617,6.58,171.66,171.65,2.1555]
[1717697977854,6.58,171.67,171.66,2.1554]
[1717697982244,28.4747,171.72,171.67,2.1552]
[1717697982422,6.58,171.68,171.61,26.58]
[1717697982735,6.58,171.67,171.66,2.1554]
[1717697988844,6.7177,171.71,171.61,26.58]
[1717697989021,6.58,171.67,171.61,26.58]
[1717697989427,6.58,171.66,171.61,20.0]
[1717697989630,6.58,171.65,171.61,20.0]
[1717697989930,6.58,171.65,171.6,20.0]
[1717697990553,6.7177,171.71,171.6,146.58]
[1717697990857,6.58,171.67,171.61,6.58]
[1717697991062,6.58,171.67,171.62,20.0]
[1717697994147,6.58,171.66,171.62,20.0]
[1717697997748,6.5477,171.71,171.62,26.58]
[1717697997947,6.58,171.69,171.62,26.58]
[1717697998832,6.58,171.68,171.62,26.58]
[1717698001554,6.3777,171.71,171.62,26.58]
[1717698001735,6.3777,171.71,171.63,5.827]
[1717698002050,2.1544,171.74,171.64,25.827]
[1717698002257,8.3517,171.75,171.64,20.0]
[1717698002454,6.58,171.71,171.65,6.58]
[1717698002640,6.58,171.71,171.65,12.407]
[1717698002841,8.3517,171.75,171.65,12.407]
[1717698003239,6.58,171.71,171.65,6.58]
[1717698003648,6.58,171.71,171.65,12.407]
[1717698004156,6.58,171.71,171.65,6.58]
[1717698004838,6.58,171.71,171.65,12.404]
[1717698005040,2.1544,171.74,171.65,5.824]
[1717698005041,6.58,171.7,171.65,5.824]
[1717698005649,6.58,171.7,171.64,20.0]
[1717698005855,6.58,171.69,171.64,20.0]
[1717698006159,2.1546,171.72,171.64,20.0]
[1717698006160,6.58,171.68,171.64,20.0]
[1717698006477,6.58,171.68,171.63,20.0]
[1717698007254,8.7346,171.72,171.63,20.0]
[1717698007558,28.4746,171.72,171.63,20.0]
[1717698008071,26.32,171.72,171.63,20.0]
[1717698009137,26.32,171.72,171.62,26.58]
[1717698009342,28.4746,171.72,171.62,20.0]
[1717698009560,28.4746,171.72,171.61,6.58]
[1717698009780,28.4746,171.72,171.62,20.0]
[1717698010136,6.58,171.67,171.62,20.0]
[1717698011471,28.4746,171.72,171.62,20.0]
[1717698011664,6.58,171.67,171.62,20.0]
[1717698012867,6.58,171.67,171.63,5.824]
[1717698013055,6.58,171.67,171.64,25.824]
[1717698013253,6.58,171.67,171.64,5.824]
[1717698013866,26.32,171.72,171.62,26.58]
[1717698014054,6.58,171.68,171.64,5.824]
[1717698014667,6.58,171.68,171.63,6.58]
[1717698014871,6.58,171.68,171.64,20.0]
[1717698015048,6.58,171.68,171.64,25.824]
[1717698015247,2.1544,171.74,171.64,145.824]
[1717698015449,8.3517,171.75,171.65,6.58]
[1717698015771,6.58,171.71,171.65,5.824]
[1717698016067,8.3517,171.75,171.65,5.824]
[1717698016068,6.58,171.7,171.65,5.824]
[1717698016244,2.1544,171.74,171.65,5.824]
[1717698016445,6.58,171.69,171.65,5.824]
[1717698017059,2.1544,171.74,171.65,5.824]
[1717698017268,6.58,171.69,171.65,5.824]
[1717698017659,2.1544,171.74,171.65,5.824]
[1717698017966,6.58,171.69,171.65,5.824]
[1717698019172,6.58,171.69,171.64,20.0]
[1717698019774,6.58,171.69,171.64,25.824]
[1717698020269,2.1544,171.74,171.64,25.824]
[1717698020270,2.1544,171.74,171.64,20.0]
[1717698020465,6.58,171.69,171.64,20.0]
[1717698020667,0.17,171.73,171.64,20.0]
[1717698020859,6.58,171.69,171.63,26.58]
[1717698025369,6.58,171.69,171.63,20.0]
[1717698025564,6.58,171.69,171.63,26.58]
[1717698026503,0.17,171.73,171.63,20.0]
[1717698026677,6.58,171.65,171.61,20.0]
[1717698026878,6.58,171.65,171.6,20.0]
[1717698027059,6.58,171.65,171.59,26.58]
[1717698027673,6.58,171.65,171.6,5.824]
[1717698028260,6.58,171.65,171.61,20.0]
[1717698028561,6.5459,171.7,171.61,20.0]
[1717698028962,6.58,171.65,171.61,20.0]
[1717698029175,6.58,171.66,171.6,32.404]
[1717698030782,6.5459,171.7,171.6,32.404]
[1717698031083,6.58,171.66,171.6,32.404]
[1717698032777,6.5459,171.7,171.6,32.404]
[1717698032976,6.58,171.66,171.6,32.404]
[1717698033186,6.58,171.66,171.6,25.824]
[1717698033470,6.58,171.66,171.6,32.404]
[1717698040304,6.58,171.66,171.6,25.824]
[1717698040493,6.58,171.66,171.6,32.404]
[1717698043483,6.58,171.65,171.6,20.0]
[1717698043685,6.58,171.65,171.61,5.824]
[1717698044305,6.58,171.65,171.62,25.824]
[1717698044611,6.58,171.65,171.62,5.824]
[1717698045414,6.58,171.65,171.6,5.824]
[1717698045602,6.58,171.65,171.62,5.824]
[1717698046592,6.58,171.65,171.6,5.824]
[1717698046794,6.58,171.65,171.62,5.824]
[1717698047208,6.58,171.66,171.62,5.824]
[1717698048216,6.58,171.66,171.61,5.824]
[1717698048401,6.58,171.66,171.62,25.824]
[1717698049915,6.5459,171.7,171.62,25.824]
[1717698050112,6.58,171.66,171.62,25.824]
[1717698052420,0.17,171.69,171.62,25.824]
[1717698052610,6.58,171.66,171.62,25.824]
[1717698054412,0.17,171.69,171.62,25.824]
[1717698054593,6.58,171.66,171.62,25.824]
[1717698055498,6.58,171.64,171.58,126.58]
[1717698055714,6.58,171.64,171.6,5.824]
[1717698055909,6.58,171.64,171.61,5.824]
[1717698056117,2.325,171.69,171.59,20.0]
[1717698056118,6.58,171.63,171.59,20.0]
[1717698056495,6.58,171.63,171.58,20.0]